bitfinex/quotes_SOLUSD_20251125
["timestamp","ask_amount","ask_price","bid_price","bid_amount"]
[1764044084690,0.69,138.68,138.66,8.80994492]
[1764044087310,19.24280596,138.68,138.66,8.80994492]
[1764044087696,0.69,138.67,138.66,8.80994492]
[1764044087889,2.93394196,138.67,138.66,8.80994492]
[1764044088095,2.93394196,138.67,138.63,3.2]
[1764044088304,0.69,138.66,138.63,3.2]
[1764044089089,0.69,138.66,138.64,8.80994492]
[1764044090831,18.55280596,138.65,138.64,8.80994492]
[1764044091197,19.24280596,138.65,138.62,8.80994492]
[1764044091400,0.69,138.64,138.62,8.80994492]
[1764044092346,0.69,138.64,138.61,3.2]
[1764044092347,2.93394196,138.64,138.61,3.2]
[1764044092728,0.69,138.63,138.61,3.2]
[1764044100574,2.24394196,138.62,138.59,11.98994492]
[1764044100944,0.71,138.61,138.59,11.98994492]
[1764044101149,0.71,138.61,138.59,19.20528027]
[1764044101374,0.71,138.62,138.59,21.44922223]
[1764044102688,0.71,138.62,138.59,19.20528027]
[1764044103568,0.71,138.62,138.59,11.98994492]
[1764044103757,2.24394196,138.6,138.53,2.29394196]
[1764044103965,2.24394196,138.59,138.56,8.80994492]
[1764044104263,2.95394196,138.59,138.56,8.80994492]
[1764044104462,0.71,138.58,138.55,8.80994492]
[1764044104677,0.71,138.58,138.56,3.18]
[1764044106200,2.24394196,138.57,138.56,3.18]
[1764044106498,2.95394196,138.58,138.55,8.80994492]
[1764044106664,0.71,138.57,138.55,8.80994492]
[1764044107093,0.71,138.57,138.55,11.98994492]
[1764044108494,2.95394196,138.57,138.54,8.80994492]
[1764044108887,0.71,138.56,138.54,8.80994492]
[1764044112882,4.21739424,138.56,138.53,8.80994492]
[1764044113113,4.21739424,138.56,138.53,11.98994492]
[1764044113288,0.71,138.55,138.53,11.98994492]
[1764044114197,0.71,138.55,138.53,19.20849758]
[1764044119088,0.71,138.55,138.53,11.98994492]
[1764044119495,17.018864,138.57,138.53,19.25849588]
[1764044119702,0.71,138.56,138.53,19.20849588]
[1764044121213,3.50739424,138.55,138.53,11.98994492]
[1764044121695,0.71,138.54,138.53,11.98994492]
[1764044122679,20.52625824,138.54,138.53,11.98994492]
[1764044123496,20.52625824,138.54,138.52,8.80994492]
[1764044123692,4.18739424,138.53,138.52,8.80994492]
[1764044123899,4.18739424,138.53,138.49,3.18]
[1764044124110,3.50739424,138.51,138.49,3.18]
[1764044124288,3.50739424,138.51,138.47,10.40145427]
[1764044124616,0.68,138.5,138.47,10.40171617]
[1764044124812,0.68,138.5,138.48,8.80994492]
[1764044125607,16.988864,138.5,138.48,8.80994492]
[1764044125813,20.49625824,138.5,138.48,8.80994492]
[1764044125988,0.68,138.49,138.48,8.80994492]
[1764044126191,4.18739424,138.49,138.46,11.98994492]
[1764044126589,0.68,138.49,138.46,11.98994492]
[1764044127721,0.68,138.49,138.46,19.21206811]
[1764044129316,0.68,138.51,138.47,0.14216157]
[1764044129506,16.308864,138.5,138.47,0.14216157]
[1764044130008,0.68,138.49,138.48,8.80994492]
[1764044132932,0.68,138.49,138.47,8.95210649]
[1764044134108,0.68,138.49,138.48,8.80994492]
[1764044134728,0.68,138.54,138.48,19.58846054]
[1764044135028,0.68,138.54,138.5,12.31733916]
[1764044135224,0.68,138.54,138.52,8.80994492]
[1764044135405,16.988864,138.54,138.52,8.80994492]
[1764044135810,0.68,138.54,138.52,8.80994492]
[1764044136014,6.65329504,138.57,138.52,8.80994492]
[1764044136208,6.65329504,138.57,138.52,11.98994492]
[1764044136526,6.65329504,138.57,138.52,16.21733916]
[1764044136527,3.1459008,138.57,138.52,16.21733916]
[1764044136703,6.65329504,138.57,138.53,7.21865299]
[1764044137712,6.65329504,138.57,138.52,19.20893738]
[1764044137912,16.988864,138.56,138.52,19.20893738]
[1764044138313,0.68,138.55,138.52,19.20893738]
[1764044140919,4.18739424,138.55,138.52,19.20893738]
[1764044141325,0.68,138.55,138.52,19.20893738]
[1764044146542,4.18739424,138.55,138.52,11.98994492]
[1764044146841,3.50739424,138.53,138.49,16.03044713]
[1764044147025,0.68,138.55,138.49,19.53784137]
[1764044147229,4.18739424,138.55,138.5,9.52994492]
[1764044147544,4.18739424,138.55,138.51,3.18]
[1764044147717,0.68,138.55,138.51,3.9]
[1764044147918,0.68,138.55,138.51,3.18]
[1764044148117,4.18739424,138.55,138.51,3.18]
[1764044148529,0.68,138.54,138.51,3.18]
[1764044149433,4.18739424,138.54,138.51,3.18]
[1764044149627,0.68,138.54,138.51,3.18]
[1764044149828,4.18739424,138.54,138.51,3.18]
[1764044150237,0.68,138.53,138.51,3.18]
[1764044151518,4.18739424,138.53,138.51,3.18]
[1764044152139,0.68,138.53,138.51,3.18]
[1764044155425,16.308864,138.54,138.52,8.80994492]
[1764044155630,16.998864,138.54,138.52,8.80994492]
[1764044156051,16.308864,138.54,138.52,8.80994492]
[1764044156260,17.018864,138.54,138.52,8.80994492]
[1764044157347,17.018864,138.54,138.52,16.02907993]
[1764044157965,16.308864,138.54,138.52,16.02907993]
[1764044158256,17.018864,138.55,138.52,16.02907993]
[1764044158765,0.71,138.55,138.52,16.69907993]
[1764044159565,0.71,138.55,138.52,16.02907993]
[1764044161067,4.21739424,138.55,138.52,8.80994492]
[1764044161249,19.81625824,138.54,138.52,8.80994492]
[1764044161448,20.52625824,138.54,138.52,8.80994492]
[1764044161662,0.71,138.53,138.52,8.80994492]
[1764044162038,4.21739424,138.53,138.52,8.80994492]
[1764044162344,4.21739424,138.53,138.5,7.22011118]
[1764044162669,0.71,138.53,138.51,8.80994492]
[1764044165066,0.71,138.53,138.5,10.40011118]
[1764044165067,3.50739424,138.52,138.47,8.80994492]
[1764044165361,3.50739424,138.51,138.48,3.18]
[1764044165760,0.71,138.5,138.48,3.18]
[1764044166564,17.018864,138.5,138.48,3.18]
[1764044166771,0.71,138.54,138.49,12.98733916]
[1764044167144,0.71,138.54,138.51,8.80994492]
[1764044167464,17.018864,138.54,138.51,11.98994492]
[1764044167869,0.71,138.53,138.51,11.98994492]
[1764044169568,3.50739424,138.55,138.51,19.87949876]
[1764044169569,0.71,138.55,138.51,19.87949876]
[1764044169770,0.71,138.54,138.51,19.87949876]
[1764044171260,0.71,138.54,138.51,19.20949876]
[1764044171755,0.71,138.54,138.51,19.87949876]
[1764044173668,19.26394206,138.56,138.52,7.88899755]
[1764044173981,0.71,138.55,138.52,7.21899755]
[1764044174876,0.71,138.55,138.51,19.20945874]
[1764044175085,2.95507806,138.55,138.51,19.20945874]
[1764044175460,0.71,138.54,138.51,19.20945874]
[1764044179782,16.308864,138.55,138.51,19.20945874]
[1764044179973,0.71,138.54,138.52,0.14216157]
[1764044180167,16.308864,138.55,138.53,8.80994492]
[1764044180168,17.018864,138.55,138.53,8.80994492]
[1764044180866,0.71,138.54,138.52,8.95210649]
[1764044182081,16.308864,138.55,138.53,7.21865299]
[1764044182887,16.968864,138.55,138.52,16.17108225]
[1764044183100,16.968864,138.55,138.53,3.18]
[1764044185383,19.21394206,138.54,138.46,0.7]
[1764044185587,2.24507806,138.51,138.47,11.98994492]
[1764044185773,2.24507806,138.51,138.47,19.21139614]
[1764044186083,0.66,138.5,138.47,19.21139614]
[1764044186684,0.66,138.5,138.47,19.91139614]
[1764044189499,2.24507806,138.49,138.47,11.98994492]
[1764044190085,2.90507806,138.49,138.47,11.98994492]
[1764044190290,2.90507806,138.48,138.47,8.80994492]
[1764044190605,16.308864,138.47,138.44,8.80994492]
[1764044190786,2.24507806,138.46,138.44,8.80994492]
[1764044191104,2.90507806,138.46,138.44,8.80994492]
[1764044191403,2.90507806,138.45,138.44,8.80994492]
[1764044192287,2.90507806,138.45,138.41,3.18]
[1764044192485,3.18,138.48,138.42,8.80994492]
[1764044192486,2.90507806,138.44,138.42,8.80994492]
[1764044192906,0.66,138.43,138.42,8.80994492]
[1764044194391,16.968864,138.44,138.42,8.80994492]
[1764044194601,0.66,138.45,138.42,8.80994492]
[1764044194801,2.90507806,138.49,138.44,8.80994492]
[1764044195112,0.66,138.48,138.45,3.18]
[1764044195906,0.66,138.48,138.45,3.88]
[1764044196909,16.968864,138.49,138.45,11.10277179]
[1764044197120,16.308864,138.49,138.46,9.50994492]
[1764044197717,16.308864,138.49,138.46,8.80994492]
[1764044197901,0.66,138.48,138.46,8.80994492]
[1764044198405,16.308864,138.49,138.46,16.03221773]
[1764044198586,16.968864,138.49,138.46,16.03221773]
[1764044198791,16.968864,138.49,138.46,16.73221773]
[1764044199416,16.308864,138.49,138.48,8.80994492]
[1764044199931,16.308864,138.5,138.48,8.80994492]
[1764044200222,16.308864,138.5,138.46,16.03221773]
[1764044200223,0.66,138.49,138.46,16.03221773]
[1764044201292,0.66,138.49,138.46,16.73221773]
[1764044202015,0.66,138.49,138.46,16.03221773]
[1764044202622,0.66,138.49,138.47,8.80994492]
[1764044204443,16.308864,138.5,138.47,8.80994492]
[1764044204726,0.66,138.5,138.47,16.73137225]
[1764044205338,0.66,138.5,138.47,16.03137225]
[1764044205505,2.90507806,138.5,138.47,16.03137225]
[1764044205706,19.21394206,138.5,138.47,16.03137225]
[1764044205897,0.66,138.49,138.47,16.03137225]
[1764044206630,0.66,138.49,138.46,16.03202952]
[1764044207815,2.90507806,138.49,138.46,8.80994492]
[1764044208021,0.66,138.49,138.42,0.7]
[1764044208326,2.24507806,138.47,138.43,11.98994492]
[1764044208517,18.55394206,138.47,138.43,11.98994492]
[1764044208822,0.66,138.46,138.43,11.98994492]
[1764044209333,0.66,138.46,138.43,19.21365644]
[1764044210210,2.90507806,138.46,138.43,19.21365644]
[1764044210416,2.24507806,138.44,138.43,8.80994492]
[1764044210609,2.24507806,138.44,138.38,7.42628731]
[1764044210945,2.24507806,138.41,138.39,8.80994492]
[1764044211146,2.24507806,138.42,138.39,8.80994492]
[1764044211437,18.55394206,138.43,138.39,16.73589438]
[1764044211612,19.21394206,138.43,138.41,8.80994492]
[1764044211811,19.21394206,138.43,138.39,16.73589438]
[1764044213048,18.55394206,138.43,138.39,16.73589438]
[1764044213340,0.7,138.42,138.39,16.03589438]
[1764044213515,17.008864,138.43,138.4,9.46994492]
[1764044213712,17.008864,138.43,138.4,8.80994492]
[1764044213713,16.308864,138.43,138.4,8.80994492]
[1764044213933,0.7,138.42,138.4,8.80994492]
[1764044214111,17.008864,138.43,138.4,8.80994492]
[1764044214845,2.94507806,138.42,138.4,8.80994492]
[1764044215652,0.7,138.41,138.39,8.80994492]
[1764044216634,19.21394206,138.46,138.4,0.7]
[1764044216820,2.24507806,138.45,138.41,3.18]
[1764044217020,2.24507806,138.44,138.41,3.18]
[1764044217230,2.24507806,138.43,138.41,3.18]
[1764044217435,2.24507806,138.42,138.39,11.98994492]
[1764044217643,2.90507806,138.42,138.39,11.98994492]
[1764044217850,0.66,138.41,138.39,11.98994492]
[1764044219152,0.66,138.41,138.38,9.00994492]
[1764044219153,2.24507806,138.4,138.38,9.00994492]
[1764044219555,2.90507806,138.4,138.38,9.00994492]
[1764044219853,0.66,138.39,138.38,9.00994492]
[1764044220056,2.90507806,138.4,138.38,9.00994492]
[1764044220256,2.24507806,138.4,138.38,9.00994492]
[1764044220448,0.66,138.39,138.38,9.00994492]
[1764044221237,19.21394206,138.41,138.38,9.00994492]
[1764044221656,0.66,138.4,138.38,9.00994492]
[1764044222047,2.90507806,138.4,138.38,9.00994492]
[1764044223270,2.24507806,138.4,138.38,9.00994492]
[1764044223571,0.66,138.39,138.38,9.00994492]
[1764044223745,2.24507806,138.4,138.38,9.00994492]
[1764044223948,2.90507806,138.4,138.38,9.00994492]
[1764044224348,0.66,138.4,138.38,9.00994492]
[1764044225089,2.90507806,138.4,138.38,9.00994492]
[1764044225939,2.90507806,138.39,138.38,9.00994492]
[1764044226967,0.66,138.4,138.38,9.00994492]
[1764044227164,2.90507806,138.39,138.38,0.2]
[1764044227461,19.21394206,138.39,138.38,0.2]
[1764044229374,2.90507806,138.39,138.38,0.2]
[1764044229740,19.21394206,138.39,138.38,0.2]
[1764044229944,2.90507806,138.39,138.38,0.2]
[1764044232570,4.17719565,138.39,138.38,0.2]
[1764044233472,0.66,138.39,138.38,9.00994492]
[1764044233677,20.48605965,138.41,138.38,9.00994492]
[1764044233982,0.66,138.41,138.38,9.00994492]
[1764044234187,23.00605965,138.42,138.38,16.23637945]
[1764044234358,20.48605965,138.42,138.38,16.93637945]
[1764044234685,19.82605965,138.42,138.38,16.23637945]
[1764044234863,0.66,138.41,138.38,16.23637945]
[1764044235260,16.308864,138.42,138.39,0.7]
[1764044235466,4.17719565,138.43,138.39,0.7]
[1764044235677,16.308864,138.42,138.39,0.7]
[1764044236580,16.308864,138.42,138.39,7.92561152]
[1764044237359,16.968864,138.42,138.39,7.92561152]
[1764044237860,20.48605965,138.44,138.4,9.50994492]
[1764044238059,16.308864,138.43,138.4,9.50994492]
[1764044238675,4.17719565,138.44,138.4,9.50994492]
[1764044238880,20.48605965,138.44,138.4,16.73490924]
[1764044239179,4.17719565,138.43,138.39,16.73569665]
[1764044239364,3.51719565,138.42,138.39,8.80994492]
[1764044239666,20.48605965,138.42,138.39,11.98994492]
[1764044239860,0.66,138.41,138.39,11.98994492]
[1764044240085,0.66,138.41,138.39,19.21589512]
[1764044240582,19.82605965,138.42,138.39,19.21589512]
[1764044240781,19.82605965,138.42,138.39,19.91589512]
[1764044241383,20.48605965,138.42,138.39,19.91589512]
[1764044242291,20.48605965,138.42,138.39,19.21589512]
[1764044242795,20.48605965,138.42,138.39,19.91589512]
[1764044242987,20.48605965,138.42,138.39,19.21589512]
[1764044243594,4.17719565,138.41,138.39,11.98994492]
[1764044243778,3.51719565,138.4,138.38,9.00994492]
[1764044243976,3.51719565,138.39,138.38,9.00994492]
[1764044244193,4.17719565,138.4,138.38,9.00994492]
[1764044244781,16.308864,138.4,138.38,9.00994492]
[1764044245087,16.308864,138.4,138.38,16.95635782]
[1764044245477,19.82605965,138.42,138.38,16.95635782]
[1764044245799,20.48605965,138.42,138.38,16.95635782]
[1764044246302,0.66,138.41,138.38,16.95635782]
[1764044246897,19.82605965,138.42,138.38,16.95635782]
[1764044247072,20.48605965,138.42,138.39,0.72]
[1764044247386,20.48605965,138.42,138.38,16.95635782]
[1764044248190,0.66,138.41,138.38,16.95635782]
[1764044249103,4.17719565,138.41,138.38,16.95635782]
[1764044250505,0.66,138.45,138.4,8.80994492]
[1764044250699,16.308864,138.43,138.4,8.80994492]
[1764044251211,3.51719565,138.41,138.39,12.13210649]
[1764044251705,4.17719565,138.4,138.38,9.00994492]
[1764044251909,3.51719565,138.39,138.38,9.00994492]
[1764044252096,4.17719565,138.39,138.38,9.00994492]
[1764044252404,3.18,138.42,138.38,9.00994492]
[1764044252405,3.51719565,138.4,138.38,9.00994492]
[1764044253609,4.17719565,138.41,138.38,9.72994492]
[1764044253807,16.308864,138.42,138.39,0.72]
[1764044255397,16.968864,138.42,138.39,0.72]
[1764044255585,16.968864,138.42,138.39,7.94591697]
[1764044256314,4.17719565,138.41,138.38,19.41620259]
[1764044256809,3.51719565,138.41,138.38,19.41620259]
[1764044256981,4.17719565,138.41,138.38,19.41620259]
[1764044257182,4.17719565,138.41,138.38,20.13620259]
[1764044257611,4.17719565,138.41,138.38,19.41620259]
[1764044257801,0.66,138.4,138.38,19.41620259]
[1764044258112,0.66,138.4,138.38,12.18994492]
[1764044258316,4.17719565,138.41,138.38,19.4163617]
[1764044258989,3.51719565,138.41,138.38,19.4163617]
[1764044259199,0.66,138.4,138.38,19.4163617]
[1764044260005,0.66,138.4,138.38,12.18994492]
[1764044260819,0.66,138.4,138.38,19.41635334]
[1764044262836,3.51719565,138.42,138.38,12.18994492]
[1764044263040,0.66,138.41,138.38,12.18994492]
[1764044264041,16.308864,138.42,138.39,0.86216157]
[1764044264341,0.66,138.43,138.4,8.80994492]
[1764044264706,0.66,138.43,138.4,0.72]
[1764044267534,0.66,138.43,138.4,7.94535187]
[1764044270033,0.66,138.43,138.4,7.22535187]
[1764044274323,0.66,138.43,138.4,7.88535187]
[1764044276519,3.51719565,138.44,138.41,8.80994492]
[1764044276742,17.028864,138.45,138.41,12.69994492]
[1764044276927,16.308864,138.45,138.41,12.69994492]
[1764044277127,0.72,138.44,138.41,12.69994492]
[1764044277744,0.72,138.44,138.41,19.92445503]
[1764044278423,0.72,138.44,138.41,19.21445503]
[1764044278844,4.23719565,138.44,138.41,19.21445503]
[1764044281518,4.23719565,138.44,138.41,19.92445503]
[1764044281725,0.72,138.44,138.41,19.92445503]
[1764044282524,16.308864,138.45,138.42,7.93436677]
[1764044282725,20.54605965,138.45,138.42,7.93436677]
[1764044283143,20.54605965,138.45,138.42,7.22436677]
[1764044283354,0.72,138.44,138.42,7.22436677]
[1764044284242,26.70981797,138.49,138.43,8.80994492]
[1764044284558,0.72,138.47,138.44,3.18]
[1764044284835,4.23719565,138.49,138.45,8.80994492]
[1764044285047,3.51719565,138.49,138.45,8.80994492]
[1764044285222,4.23719565,138.48,138.45,8.80994492]
[1764044285653,4.23719565,138.47,138.45,8.80994492]
[1764044286038,0.72,138.46,138.45,8.80994492]
[1764044289339,0.72,138.47,138.45,8.80994492]
[1764044292349,0.72,138.47,138.45,16.03269964]
[1764044293562,0.72,138.47,138.45,8.80994492]
[1764044294067,3.51719565,138.46,138.45,8.80994492]
[1764044294561,2.968385,138.46,138.45,8.80994492]
[1764044296565,0.72,138.46,138.45,8.80994492]
[1764044299463,19.277249,138.46,138.45,8.80994492]
[1764044299670,16.308864,138.45,138.42,8.80994492]
[1764044299974,19.277249,138.45,138.42,8.80994492]
[1764044300191,0.72,138.44,138.42,8.80994492]
[1764044301176,19.277249,138.45,138.42,9.51994492]
[1764044301379,17.028864,138.45,138.42,9.51994492]
[1764044301671,18.557249,138.45,138.42,8.80994492]
[1764044301973,0.72,138.44,138.42,8.80994492]
[1764044304975,16.308864,138.45,138.42,16.73432968]
[1764044305278,17.018864,138.45,138.42,16.03432968]
[1764044305449,0.71,138.44,138.42,16.03432968]
[1764044306449,0.71,138.44,138.42,8.80994492]
[1764044307147,0.71,138.44,138.42,11.98994492]
[1764044308656,0.71,138.44,138.42,19.21431533]
[1764044317084,0.71,138.44,138.42,11.98994492]
[1764044318795,0.71,138.44,138.42,19.21429501]
[1764044322278,2.248385,138.43,138.4,8.95210649]
[1764044322472,2.248385,138.42,138.4,8.80994492]
[1764044322676,2.248385,138.41,138.39,8.80994492]
[1764044323186,0.71,138.4,138.39,8.95210649]
[1764044323697,0.71,138.4,138.39,8.80994492]
[1764044325082,0.71,138.41,138.39,16.03590055]
[1764044327285,0.71,138.41,138.39,8.80994492]
[1764044332105,0.71,138.41,138.39,16.03571668]
[1764044332312,7.22230784,138.46,138.39,16.03571668]
[1764044332610,16.308864,138.42,138.39,16.73571668]
[1764044333219,16.968864,138.42,138.39,16.73571668]
[1764044333808,16.968864,138.42,138.39,16.74571668]
[1764044337813,16.308864,138.42,138.4,11.11538969]
[1764044338113,2.928385,138.44,138.4,11.11538969]
[1764044338413,2.928385,138.44,138.42,8.80994492]
[1764044339596,0.68,138.44,138.42,16.0341118]
[1764044340002,2.248385,138.43,138.39,0.14216157]
[1764044340217,0.68,138.44,138.39,19.35785924]
[1764044340218,2.248385,138.41,138.39,19.35785924]
[1764044340600,2.928385,138.41,138.39,19.35785924]
[1764044341400,2.248385,138.42,138.39,19.35785924]
[1764044341737,2.248385,138.41,138.39,11.98994492]
[1764044342020,2.248385,138.4,138.38,9.00994492]
[1764044342204,2.928385,138.4,138.38,9.00994492]
[1764044342394,0.68,138.39,138.38,9.00994492]
[1764044342595,2.928385,138.39,138.38,9.00994492]
[1764044342894,2.928385,138.4,138.38,16.23642273]
[1764044343397,2.928385,138.4,138.38,9.00994492]
[1764044343398,0.68,138.39,138.38,9.00994492]
[1764044343705,2.928385,138.39,138.38,9.00994492]
[1764044346218,19.237249,138.39,138.38,9.00994492]
[1764044346395,19.237249,138.39,138.37,0.2]
[1764044346396,16.308864,138.38,138.37,0.2]
[1764044346592,19.237249,138.38,138.37,0.2]
[1764044347216,2.248385,138.39,138.37,0.2]
[1764044347517,2.928385,138.4,138.37,9.00994492]
[1764044347999,0.68,138.39,138.37,9.00994492]
[1764044348409,2.928385,138.4,138.37,9.71994492]
[1764044349012,0.68,138.4,138.37,16.94688008]
[1764044349533,2.928385,138.44,138.38,4.03216157]
[1764044349841,16.308864,138.43,138.38,4.03216157]
[1764044350004,16.308864,138.43,138.4,8.95210649]
[1764044350524,2.928385,138.45,138.42,8.80994492]
[1764044350919,2.928385,138.45,138.42,9.51994492]
[1764044352119,2.248385,138.44,138.42,8.80994492]
[1764044352301,2.248385,138.43,138.4,8.80994492]
[1764044352505,2.248385,138.41,138.4,8.80994492]
[1764044353226,2.928385,138.42,138.4,8.80994492]
[1764044353413,2.248385,138.43,138.4,9.51994492]
[1764044353613,16.988864,138.44,138.41,0.71]
[1764044353614,18.557249,138.44,138.41,0.71]
[1764044353912,19.237249,138.44,138.41,7.93463813]
[1764044354309,2.928385,138.44,138.41,7.93463813]
[1764044354504,4.19396033,138.44,138.42,8.80994492]
[1764044355228,0.68,138.44,138.42,8.80994492]
[1764044355416,4.19396033,138.44,138.42,8.80994492]
[1764044356329,4.19396033,138.44,138.42,16.0343035]
[1764044356518,4.19396033,138.44,138.42,8.80994492]
[1764044356826,3.51396033,138.43,138.42,8.80994492]
[1764044357022,4.19396033,138.43,138.42,8.80994492]
[1764044358715,4.19396033,138.43,138.4,16.03520144]
[1764044358916,3.51396033,138.41,138.4,8.80994492]
[1764044359809,4.19396033,138.41,138.4,8.80994492]
[1764044360014,4.19396033,138.41,138.39,8.80994492]
[1764044360215,4.19396033,138.4,138.39,8.80994492]
[1764044360614,3.51396033,138.4,138.39,8.80994492]
[1764044361730,4.19396033,138.4,138.39,8.80994492]
[1764044362107,16.308864,138.41,138.39,8.80994492]
[1764044362311,16.308864,138.41,138.39,9.51994492]
[1764044362312,19.82282433,138.41,138.39,9.51994492]
[1764044362638,4.19396033,138.41,138.39,8.80994492]
[1764044363013,3.51396033,138.42,138.39,7.22586263]
[1764044363234,3.51396033,138.42,138.41,8.80994492]
[1764044363534,16.308864,138.42,138.41,8.80994492]
[1764044364238,4.22396033,138.43,138.41,8.80994492]
[1764044365038,4.22396033,138.43,138.39,7.88574586]
[1764044365212,4.22396033,138.43,138.39,7.22574586]
[1764044365740,4.22396033,138.43,138.41,8.80994492]
[1764044366240,16.308864,138.44,138.41,16.6947561]
[1764044366535,20.53282433,138.44,138.41,16.6947561]
[1764044367041,20.53282433,138.44,138.41,9.46994492]
[1764044367744,20.53282433,138.44,138.41,16.69465713]
[1764044370120,3.51396033,138.45,138.42,7.88423615]
[1764044370515,3.51396033,138.43,138.4,3.18]
[1764044370741,3.51396033,138.42,138.41,8.80994492]
[1764044371126,4.22396033,138.42,138.41,8.80994492]
[1764044372321,3.51396033,138.43,138.41,8.80994492]
[1764044372729,4.22396033,138.43,138.41,8.80994492]
[1764044373347,19.82282433,138.44,138.41,9.46994492]
[1764044373537,3.51396033,138.46,138.42,0.66]
[1764044373849,4.22396033,138.46,138.42,0.66]
[1764044374230,3.51396033,138.47,138.44,7.22334585]
[1764044374631,3.51396033,138.47,138.42,18.72023928]
[1764044374632,3.51396033,138.45,138.42,8.80994492]
[1764044374839,3.51396033,138.43,138.42,8.80994492]
[1764044375746,3.51396033,138.44,138.42,9.46994492]
[1764044376133,16.308864,138.46,138.43,3.84]
[1764044376348,3.51396033,138.48,138.43,3.84]
[1764044376548,3.51396033,138.48,138.45,8.80994492]
[1764044376738,4.22396033,138.47,138.45,8.80994492]
[1764044376939,3.51396033,138.47,138.45,8.80994492]
[1764044377159,3.51396033,138.47,138.45,0.66]
[1764044377340,3.51396033,138.47,138.44,9.46994492]
[1764044377533,3.51396033,138.47,138.45,0.66]
[1764044378055,3.51396033,138.47,138.44,16.0328557]
[1764044378257,4.22396033,138.47,138.44,16.0328557]
[1764044379342,4.22396033,138.47,138.44,16.6928557]
[1764044379741,3.51396033,138.46,138.44,16.0328557]
[1764044379945,4.22396033,138.46,138.44,16.0328557]
[1764044381162,3.51396033,138.46,138.44,16.6928557]
[1764044382050,4.22396033,138.47,138.44,16.6928557]
[1764044382642,3.51396033,138.47,138.44,16.6928557]
[1764044382860,0.71,138.49,138.45,0.80216157]
[1764044383044,3.51396033,138.48,138.47,8.80994492]
[1764044383248,3.51396033,138.49,138.47,8.80994492]
[1764044384353,3.51396033,138.48,138.47,8.80994492]
[1764044385458,3.51396033,138.48,138.47,16.03172581]
[1764044385672,19.82282433,138.5,138.47,16.69172581]
[1764044385850,19.82282433,138.5,138.49,8.80994492]
[1764044386349,19.82282433,138.5,138.47,16.03172581]
[1764044386538,19.82282433,138.5,138.47,16.69172581]
[1764044386939,3.51396033,138.48,138.44,8.80994492]
[1764044387150,3.51396033,138.46,138.45,11.98994492]
[1764044387451,4.22396033,138.46,138.45,11.98994492]
[1764044388136,16.308864,138.5,138.46,8.80994492]
[1764044388344,0.71,138.5,138.48,8.80994492]
[1764044388739,4.22396033,138.51,138.48,8.80994492]
[1764044389145,4.22396033,138.51,138.48,16.03105444]
[1764044389363,3.51396033,138.52,138.49,0.66]
[1764044389538,4.22396033,138.52,138.49,0.66]
[1764044390369,4.22396033,138.52,138.48,16.03105444]
[1764044390577,4.22396033,138.52,138.48,16.69105444]
[1764044392172,3.51396033,138.51,138.48,16.69105444]
[1764044393779,4.19396033,138.51,138.48,16.03105444]
[1764044394178,4.19396033,138.51,138.48,16.73105444]
[1764044395187,3.51396033,138.51,138.48,16.73105444]
[1764044395366,4.19396033,138.51,138.48,16.73105444]
[1764044396474,3.51396033,138.51,138.48,8.80994492]
[1764044396671,3.51396033,138.51,138.43,8.80994492]
[1764044396672,19.82282433,138.49,138.43,8.80994492]
[1764044396874,3.51396033,138.46,138.45,8.80994492]
[1764044399669,4.19396033,138.47,138.45,16.03276904]
[1764044401993,3.51396033,138.48,138.45,16.73276904]
[1764044402682,4.19396033,138.49,138.45,16.03276904]
[1764044402876,3.51396033,138.5,138.47,8.80994492]
[1764044403091,3.18,138.57,138.49,8.80994492]
[1764044403394,4.19396033,138.52,138.49,16.03050345]
[1764044403783,0.68,138.52,138.49,16.73050345]
[1764044405006,19.82282433,138.53,138.5,0.7]
[1764044405307,4.19396033,138.53,138.49,16.73050345]
[1764044405909,4.19396033,138.53,138.5,0.7]
[1764044406092,4.19396033,138.53,138.49,16.73050345]
[1764044406509,4.19396033,138.52,138.49,16.73050345]
[1764044406688,4.19396033,138.52,138.49,16.03050345]
[1764044406886,4.19396033,138.52,138.49,16.73050345]
[1764044407285,4.19396033,138.52,138.49,16.03050345]
[1764044407605,4.19396033,138.52,138.49,16.73050345]
[1764044409199,4.19396033,138.52,138.49,16.03050345]